Cogmind - Beta 10.2 *** ADVENTURER MODE // 2021.12.18 @ 21:39:28 Player: Jezoensis Result: Destroyed by D-53 Grenadier with Mini Grenade Launcher Performance ------------- Evolutions (0) 0 Regions Visited (2) 400 Robots Destroyed (13) 65 Value Destroyed (169) 169 Prototype IDs (0) 0 Alien Tech Used (0) 0 Bonus (0) 0 TOTAL SCORE: 634 Bonus ------- None Cogmind --------- Core Integrity 0/250 Matter 300/300 Energy 99/100 System Corruption 8% Temperature Cool (0) Movement Core (50) Location -10/Mines Parts ------- > --- POWER (1) -------- (None) > --- PROPULSION (2) --- (None) > --- UTILITY (2) ------ (None) > --- WEAPON (2) ------- (None) > --- INVENTORY (4) ---- Large Storage Unit EM Pulse Gun Mining Laser Peak State ------------ > --- POWER ------------ Light Ion Engine > --- PROPULSION ------- Light Treads Light Treads > --- UTILITY ---------- Cooling System Large Storage Unit > --- WEAPON ----------- Particle Cannon Particle Cannon > --- INVENTORY -------- Ion Engine Light Treads High-capacity Storage Unit Improved Terrain Scanner Improved Terrain Scanner EM Pulse Gun Medium Laser Assault Rifle Mining Laser [Rating: 11] Favorites ----------- Power Light Ion Engine Engine Light Ion Engine Propulsion Light Treads Treads Light Treads Utility Improved Terrain Scanner Device Improved Terrain Scanner Storage Large Storage Unit Weapon Assault Rifle Energy Gun EM Pulse Gun Energy Cannon Particle Cannon Ballistic Gun Assault Rifle Special Weapon Mining Laser Build | -11 -10 -10 ------- Run | Scr Mat Min Slots Evolved . | . . . Power . | . . . Propulsion . | . . . Utility . | . . . Weapon . | . . . Parts Attached 26 | 8 11 7 Power 2 | 1 . 1 Engine 2 | 1 . 1 Core . | . . . Reactor . | . . . Propulsion 5 | 2 1 2 Treads 5 | 2 1 2 Leg . | . . . Wheel . | . . . Hover . | . . . Flight . | . . . Utility 8 | 3 3 2 Device 6 | 2 2 2 Storage 2 | 1 1 . Processor . | . . . Hackware . | . . . Protection . | . . . Artifact . | . . . Weapon 11 | 2 7 2 Energy Gun 3 | 1 2 . Energy Cannon 4 | . 2 2 Ballistic Gun 2 | 1 1 . Ballistic Cannon . | . . . Launcher . | . . . Special Weapon 2 | . 2 . Impact Weapon . | . . . Slashing Weapon . | . . . Piercing Weapon . | . . . Special Melee Weapon . | . . . Unidentified Prototypes . | . . . Parts Lost 6 | . . 6 Power 1 | . . 1 Propulsion 2 | . . 2 Utility 1 | . . 1 Weapon 2 | . . 2 Highest Loss Streak 5 | . . 5 Average Slot Usage (%) 90 | . 100 35 Engine 12 | . 14 3 Treads 24 | . 28 5 Device 13 | . 14 10 Storage 12 | . 14 5 Energy Gun 6 | . 7 1 Energy Cannon 3 | . 2 8 Ballistic Gun 10 | . 12 . Special Weapon 4 | . 5 . Naked Turns 21 | . . 21 Heaviest Build 29 | 12 29 26 Greatest Support 40 | 40 40 40 Greatest Overweight (x) 1 | . . 1 Average Overweight (x) . | . . . Largest Inventory Capacity 10 | 6 10 10 Average Capacity 7 | 5 8 5 Most Carried 10 | 4 10 10 Average Carried 6 | 2 7 5 Final Capacity 10 | 6 10 4 Final Carried 10 | 4 10 3 Class Distribution -------------------- 100% | Mutant Dominant Class ---------------- Mutant | -10/Materials Mutant | -10/Mines Resources | -11 -10 -10 ----------- Run | Scr Mat Min Matter Collected 495 | 291 159 45 Remotely . | . . . Salvage Created 439 | 140 269 30 Parts 34 | 17 17 . Haulers Intercepted 1 | . 1 . Recyclers Shooed 1 | 1 . . Parts Field Recycled . | . . . Retrieved Matter . | . . . Parts Self-Destructed . | . . . Prevented . | . . . Kills | -11 -10 -10 ------- Run | Scr Mat Min Combat Hostiles Destroyed 7 | . 5 2 Guns 1 | . 1 . Cannons 6 | . 4 2 Classes Destroyed 7 | 2 4 1 Tunneler 4 | 4 . . Hauler 1 | . 1 . Recycler 2 | 1 1 . Watcher 1 | . 1 . Swarmer 3 | . 3 . Grunt 2 | . 2 . Assembled 2 | . . 2 Best Kill Streak 5 | 4 5 2 Combat Bots Only 5 | . 5 2 Max Kills in Single Turn 1 | 1 1 1 Gunslinging . | . . . Exploded . | . . . Melee . | . . . Uniques/NPCs Destroyed . | . . . Combat | -11 -10 -10 -------- Run | Scr Mat Min Damage Taken 840 | . 146 694 Core 274 | . 16 258 Absorbed by Shields . | . . . Core Remaining (%) 100 | 100 . . Volleys Fired 42 | 7 32 3 Largest 2 | 2 2 2 Hottest 136 | 60 136 136 Shots Fired 68 | 14 48 6 Gun 37 | 14 21 2 Cannon 24 | . 20 4 Launcher . | . . . Special 7 | . 7 . Kinetic 20 | 7 13 . Thermal 31 | . 27 4 Explosive . | . . . Electromagnetic 17 | 7 8 2 Robot Hit Streak 11 | 5 11 10 Robot Miss Streak 3 | 1 3 . Penetration Max . | . . . Secondary Targets . | . . . Shots Hit Robots 45 | 10 30 5 Core Hits 18 | 5 10 3 Critical Hits . | . . . Critical Kills . | . . . Critical Parts Destroyed . | . . . Melee Attacks . | . . . Impact . | . . . Slashing . | . . . Piercing . | . . . Sneak Attacks . | . . . Combat Hostiles . | . . . Follow-up Attacks . | . . . Damage Inflicted 800 | 183 533 84 Guns 332 | 101 208 23 Cannons 356 | . 295 61 Explosions 112 | 82 30 . Melee . | . . . Ramming . | . . . Kinetic 118 | 38 80 . Thermal 468 | 82 325 61 Explosive . | . . . Electromagnetic 214 | 63 128 23 Impact . | . . . Slashing . | . . . Piercing . | . . . Highest Corruption 8 | . . 8 Average Corruption 7 | . . 7 Corruption Purged . | . . . Effects 2 | . . 2 Data Loss (minor) 2 | . . 2 Overload Shots . | . . . Overflow Damage . | . . . Projectiles . | . . . Explosions . | . . . Melee . | . . . Knockbacks . | . . . Impact . | . . . Kinetic . | . . . Secondary . | . . . Self-Inflicted Damage 14 | . 14 . Shots 1 | . 1 . Rammed . | . . . Targets Rammed . | . . . Kicked . | . . . Crushed . | . . . Highest Temperature 99 | . 99 . Average Temperature 28 | . 28 . Received Heat Transfer 54 | . 54 . Siege Activations . | . . . Robots Corrupted . | . . . Combat Hostiles . | . . . Parts Fried . | . . . Impact Corruptions . | . . . Robots Melted . | . . . Combat Hostiles . | . . . Parts Melted 1 | . 1 . Heat Transferred 679 | 50 518 111 Parts Sabotaged . | . . . Parts Stolen . | . . . Parts Stripped . | . . . Power Chain Reactions 3 | 2 1 . Missiles Intercepted . | . . . Alert | -11 -10 -10 ------- Run | Scr Mat Min Peak Influence 168 | 25 168 15 Initial 13 | . 13 11 Average 40 | 11 52 5 Maximum Alert Level . | . . . Low Security (%) 100 | 100 100 100 Level 1 . | . . . Level 2 . | . . . Level 3 . | . . . Level 4 . | . . . Level 5 . | . . . High Security . | . . . Max Security . | . . . Squads Dispatched 1 | . 1 . Investigation 1 | . 1 . Extermination . | . . . Reinforcement . | . . . Assault . | . . . Garrison . | . . . Intercept . | . . . Construction Impeded . | . . . Haulers Reinforced . | . . . Stealth | -11 -10 -10 --------- Run | Scr Mat Min Distress Signals . | . . . Communications Jammed . | . . . Distress Signals . | . . . Times Spotted 29 | . 9 20 Peak Tracking Total 14 | . 6 14 Tactical Retreats 2 | . . 2 Traps | -11 -10 -10 ------- Run | Scr Mat Min Traps Triggered . | . . . Indirectly . | . . . Trap Hack Attempts . | . . . Triggered . | . . . Disarmed . | . . . Reprogrammed . | . . . Reused . | . . . Traps Extracted . | . . . Installed . | . . . Triggered . | . . . Machines | -11 -10 -10 ---------- Run | Scr Mat Min Machines Disabled . | . . . Max in Single Turn . | . . . Machines Sabotaged . | . . . Garrisons Compromised . | . . . Overloaded Fab Kills . | . . . Fab Network Shutdowns . | . . . Hacking | -11 -10 -10 --------- Run | Scr Mat Min Machines Accessed 5 | . 5 . Terminals 4 | . 4 . Fabricators . | . . . Repair Stations . | . . . Recycling Units 1 | . 1 . Scanalyzers . | . . . Garrison Access . | . . . Total Hacks 20 | . 20 . Successful 16 | . 16 . Failed 4 | . 4 . Catastrophic . | . . . Database Lockouts . | . . . Manual 20 | . 20 . Terminals 19 | . 19 . Fabricators . | . . . Repair Stations . | . . . Recycling Units 1 | . 1 . Scanalyzers . | . . . Garrison Access . | . . . Terminal Hacks 11 | . 11 . Part Schematic 2 | . 2 . Robot Analysis 4 | . 4 . Branch Access Points 1 | . 1 . Terminal Index 1 | . 1 . Unreport Threat 1 | . 1 . Locate Traps 1 | . 1 . Zone Layout 1 | . 1 . Fabricator Hacks . | . . . Repair Station Hacks . | . . . Recycling Unit Hacks . | . . . Scanalyzer . | . . . Garrison Access Hacks . | . . . Unauthorized Hacks 5 | . 5 . Terminals 4 | . 4 . Track 2 | . 2 . Botnet 2 | . 2 . Fabricators . | . . . Repair Stations . | . . . Recycling Units 1 | . 1 . Tunnel 1 | . 1 . Scanalyzers . | . . . Garrison Access . | . . . Data Cores Recovered . | . . . Used . | . . . Hacking Detections 4 | . 4 . Full Trace Events . | . . . Feedback Events . | . . . Feedback Blocked . | . . . Robot Schematics Acquired . | . . . Robots Built . | . . . Matter . | . . . Time . | . . . Total Robot Build Rating . | . . . Part Schematics Acquired 2 | . 2 . Parts Built . | . . . Matter . | . . . Time . | . . . Total Part Build Rating . | . . . Parts Repaired . | . . . Time . | . . . Parts Recycled . | . . . Recycled Matter . | . . . Retrieved Matter . | . . . Retrieved Components . | . . . Parts Scanalyzed . | . . . Part Schematics Acquired . | . . . Parts Damaged . | . . . Bothacking | -11 -10 -10 ------------ Run | Scr Mat Min Used RIF Installer . | . . . Robots Hacked . | . . . Non-combat . | . . . Combat . | . . . Robot Hacks Applied . | . . . Relay Couplers Released . | . . . Robots Rewired . | . . . Allies Hacked . | . . . Hacks Repelled . | . . . Allies | -11 -10 -10 -------- Run | Scr Mat Min Total Allies . | . . . Largest Group . | . . . Highest-Rated Group . | . . . Highest-Rated Ally . | . . . Total Orders . | . . . Ally Attacks . | . . . Total Damage . | . . . Kills . | . . . Allies Corrupted . | . . . Allies Melted . | . . . Intel | -11 -10 -10 ------- Run | Scr Mat Min Robot Analysis Total 4 | . 4 . Derelict Logs Recovered . | . . . Drone Launches . | . . . Drone Recoveries . | . . . Exploration | -11 -10 -10 ------------- Run | Scr Mat Min Turns Passed 638 | 96 457 85 Spaces Moved 373 | 42 212 119 Core 123 | 9 . 114 Treads 250 | 33 212 5 Legs . | . . . Wheels . | . . . Hover . | . . . Flight . | . . . Fastest Speed 50 | 50 160 50 Average Speed 123 | 136 160 55 Slowest Speed 180 | 160 160 180 Overloaded Moves . | . . . Propulsion Burnouts . | . . . Robots Hopped . | . . . Cave-ins Triggered . | . . . Exploration Rate (%) 28 | 4 44 36 Regions Visited 2 Branch Regions 1 Pre-discovered Areas 1 | . 1 . Known Exits Taken 1 | . 1 . Unknown Exits Taken 1 | 1 . . Scrap Searched . | . . . Spaces Dug 7 | . 7 . Terrain Destroyed 12 | 3 9 . Melee . | . . . Projectile 7 | . 7 . AOE 5 | 3 2 . Terrain Rammed . | . . . Walls Destroyed . | . . . Machines Disabled . | . . . Actions | -11 -10 -10 --------- Run | Scr Mat Min Total 460 | 65 265 130 Wait 1 | . . 1 Move 371 | 41 211 119 Hop . | . . . Pick Up 15 | 8 7 . Fast Attach 5 | 3 1 1 Attach 7 | 4 . 3 Detach 1 | . 1 . Swap 14 | 1 10 3 Drop 4 | 1 3 . Fire 42 | 7 32 3 Melee . | . . . Ram . | . . . Kick . | . . . Crush . | . . . Escape Stasis . | . . . Rewire . | . . . Trap . | . . . Miscellaneous . | . . . Route ------- -11/Scrapyard -10/Materials (discovered 2 exits: *Min x2) -10/Mines History --------- Turn | Location | Event 2 | -11/Scrapyard | Met Revision 17 9 | -11/Scrapyard | Discovered new exit (range 16) 97 | -11/Scrapyard | Entered Materials 324 | -10/Materials | Build established: Mutant 379 | -10/Materials | Identified exit to Mines 554 | -10/Materials | Entered Mines 555 | -10/Mines | Assembled infested the area 581 | -10/Mines | Released all parts (4) 610 | -10/Mines | Core integrity fell below 50% 611 | -10/Mines | Lost 5 parts (1p2n2w) 636 | -10/Mines | Core integrity fell below 20% 639 | -10/Mines | Destroyed by D-53 Grenadier with Mini Grenade Launcher Last Messages --------------- 00570_ Lgt. Treads destroyed. 00570_ System corrupted by crushing effect (+3). 00578_ Lgt. Treads destroyed. 00580_ Particle Cannon destroyed. 00580_ System corrupted by crushing effect (+1). 00581_ Released Lrg. Storage Unit. 00581_ Released Cooling System. 00581_ Released Ion Engine. 00581_ Released Lgt. Treads. 00582_ as-82314 destroyed. 00587_ T-07 Excavator system corrupted by crushing effect. 00601_ System corrupted: Component data lost. 00609_ C-30 ARC bursts open, deploying its payload. 00609_ D-53 Grenadier unfolds itself. 00612_ as-58268 destroyed. 00622_ U-05 Engineer destroyed. 00628_ The unstable cave ceiling collapses. 00632_ Acquired 45 matter. 00637_ Imp. Terrain Scanner destroyed. 00639_ System corrupted: Component data lost. Map ----- +----------------------------------------------------+ | ???????????????????????????# ##???? #?? | | ??????????????????????????## ##??? #??? | | ??????????????????????????# ##??# ????? | | ??????????????????####???## #### #??????? | | ?????????????????## ##?## #???????? | | ??????????# ##### ### ##??????? | | ??????????? ## #??????? | | ?????????????????#!= ## #??????? | | ?????????????????#%| """ ## #??????? | | ?????????????????#! ## """ ### ##??????? | | ?????????????????# ###### """ ##?# ##???????? | | ?????????????????# #????# ##??# #????????? | | ????????????????## #????## ##??## #????????? | | ?????????????#?## #?????### % #???# #????????? | | ??????????????## ###????### ##??# #????????? | | ??????????????# #??????# ???# #????????? | | ???????????#?## |%* #?#### #???# #????????? | | ???#?????????# ! #### # #???# #????????? | | ??????????????# # #???# #????????? | | ???????????#?## # #???# #????????? | | ??????????#??# #???# #####????? | | ????????????## d #???# #????? | | ???????#????# # # #???# #????? | | ????????????# ### ##???##### #?#??? | | ????????????# # % # #????????# #????? | | ????????????## @ ###?????#???# #????? | | ?????????????# #???????????# #????? | | ?????????????# #???????????# #????? | | ?????????????# ##???????????# #????? | | ???????####### % ####????#?####### ##???? | | ?# #???# !!! #???? | | ?????########## # # #####?????????### ###![ #???? | | ??????#?????? ##???????#????????# ##*[=##???? | | #???????????# """" #???#????????????## % % ##????? | | ????????????# """" #?????????????#### % ##????? | | ????????????# """" #?????????????# #????? | | ????????????# #?????????????# ### #???? | | ????????????########?????????????#???##### #??? | | ?????????????????????????????????????????## #??? | | ???????????????????????????????????????????# #?? | | ????????????????????????????????????????????####?? | | ?????????????????????????????????????????????????? | | ?????????????????????????????????????????????????? | | ?????????????????????????????????????????????????? | | ?????????????????????????????????????????????????? | | ?????????????????????????????????????????????????? | | ?????????????????????????????????????????????????? | | ?????????????????????????????????????????????????? | | ?????????????????????????????????????????????????? | | | +----------------------------------------------------+ Best States ------------- Heat Dissipation 47 Energy Generation 10 Energy Capacity 250 Matter Stores 300 Matter Capacity 300 Sight Range 16 Terrain Scan Range 16 Terrain Scan Density 10 Resistance: KI 20 Resistance: TH 20 Resistance: EX 20 Resistance: EM 20 Resistance: I 20 Resistance: S 20 Resistance: P 20 Evasion (%) 50 Recoil Reduction 2 Offensive Hacking 10 Item Schematics ----------------- Lrg. Storage Unit | -10/Materials | Hacked Hcp. Matter Pod | -10/Materials | Hacked Robot Schematics ------------------ None Fabricated ------------ Nothing Alien Tech Used ----------------- None Achievements -------------- None Challenges ------------ None Game ------ Seed TargetingGhostBlade Manual? 0 Play Time 00:14:53 Cumulative 421.1 hours Start 2021.12.18 @ 21:27:22 End 2021.12.18 @ 21:39:28 Sessions 1 Manual Loads 0 Difficulty Adventurer Special Mode None Game No. 204 Rogue 81 Adventurer 121 Explorer 2 Win Type - Total 35 Types 30/2/1/0/1/0/0/0/1 Lore% 56 Gallery% 83 Achievement% 62 Wizard Run 0 Options --------- ASCII 0 Keyboard 1 Movement Numpad Keybinds 0 Fullscreen 1 Font 36/TerminusFine Map View 76x50 Tactical HUD 1 Map Filters NONE Filters NONE Steam 1 RUN: 1cb1cbc1-3dc7-4e3d-8ae3-e88383d4146a